bitfinex-derivatives/quotes_BTCF0:USTF0_20251128
["timestamp","ask_amount","ask_price","bid_price","bid_amount"]
[1764360585737,0.0309634,91046.0,91045.0,0.05972498]
[1764360586133,0.0309634,91046.0,91045.0,0.07070848]
[1764360586333,0.0309634,91046.0,91045.0,0.01221498]
[1764360586735,0.0309634,91046.0,91045.0,0.03605498]
[1764360587035,0.0309634,91046.0,91045.0,0.07070848]
[1764360589335,0.01998,91046.0,91045.0,0.07070848]
[1764360591141,0.01998,91046.0,91045.0,0.04703848]
[1764360591840,0.01998,91046.0,91045.0,0.05972498]
[1764360592432,0.01998,91046.0,91045.0,0.03605498]
[1764360595337,0.01998,91046.0,91045.0,0.01221498]
[1764360596239,0.39998,91046.0,91045.0,0.00016475]
[1764360596438,0.021565,91033.0,91032.0,0.04338]
[1764360596639,0.021565,91033.0,91032.0,0.05590837]
[1764360597038,0.021565,91033.0,91032.0,0.06914837]
[1764360597239,0.021565,91033.0,91032.0,0.08013347]
[1764360597436,0.031565,91033.0,91032.0,0.08013347]
[1764360597938,0.032565,91033.0,91032.0,0.04564347]
[1764360598252,0.032565,91033.0,91032.0,0.0109851]
[1764360599443,0.0109855,91030.0,91029.0,0.0109854]
[1764360599642,0.0215655,91030.0,91029.0,0.0331154]
[1764360600029,0.0215655,91030.0,91029.0,0.0543654]
[1764360600235,0.0109859,91026.0,91024.0,0.05711]
[1764360600436,0.01058,91025.0,91024.0,0.04338]
[1764360600943,0.01058,91025.0,91024.0,0.05662]
[1764360602534,0.01258,91025.0,91024.0,0.06888662]
[1764360607646,0.00729,91025.0,91024.0,0.06888662]
[1764360608250,0.002,91025.0,91024.0,0.07987272]
[1764360608552,0.010983,91050.0,91041.0,0.04338]
[1764360608553,0.01114865,91042.0,91041.0,0.04338]
[1764360608849,0.02572865,91042.0,91041.0,0.04338]
[1764360609651,0.02972865,91042.0,91041.0,0.04338]
[1764360609846,0.01514865,91042.0,91041.0,0.04338]
[1764360610853,0.00416475,91042.0,91041.0,0.04338]
[1764360611549,4.75e-06,91042.0,91041.0,0.04338]
[1764360611756,0.17312,91056.0,91054.0,0.04338]
[1764360612059,0.17312,91056.0,91054.0,0.0543624]
[1764360612752,0.17312,91056.0,91054.0,0.04338]
[1764360613250,1.507,91055.0,91054.0,0.04438]
[1764360613852,1.508,91055.0,91054.0,0.04438]
[1764360620453,1.508,91055.0,91054.0,0.05665283]
[1764360625546,1.508,91055.0,91054.0,0.06763523]
[1764360626159,1.508,91055.0,91054.0,0.05665283]
[1764360626861,1.508,91055.0,91054.0,0.06763523]
[1764360632664,1.508,91055.0,91054.0,0.05665283]
[1764360637870,1.508,91055.0,91054.0,0.02005283]
[1764360638059,1.508,91055.0,91054.0,0.04287283]
[1764360640584,1.508,91055.0,91054.0,0.01327283]
[1764360640875,0.0542834,91046.0,91045.0,0.00016475]
[1764360641073,0.2273234,91046.0,91045.0,0.00016475]
[1764360642074,0.2283234,91046.0,91045.0,0.00016475]
[1764360643375,0.2303234,91046.0,91045.0,0.00116475]
[1764360644775,0.6603234,91046.0,91045.0,0.00116475]
[1764360648080,0.6603234,91046.0,91045.0,0.01327623]
[1764360648381,0.0542847,91035.0,91034.0,0.0338049]
[1764360648588,0.4642847,91035.0,91034.0,0.0549949]
[1764360649488,0.4652847,91035.0,91034.0,0.0579949]
[1764360650685,0.4652847,91035.0,91034.0,0.003]
[1764360651488,0.4652847,91035.0,91034.0,0.04701]
[1764360652689,0.4652847,91035.0,91034.0,0.0592481]
[1764360653291,0.4543,91035.0,91034.0,0.0592481]
[1764360656190,0.181,91035.0,91034.0,0.0592481]
[1764360656781,0.001,91035.0,91034.0,0.0592481]
[1764360660792,0.001,91035.0,91034.0,0.4392481]
[1764360662395,0.02368,91035.0,91034.0,0.0592481]
[1764360662887,0.001,91035.0,91034.0,0.0592481]
[1764360663091,0.04638,91035.0,91034.0,0.0592481]
[1764360665889,0.02368,91035.0,91034.0,0.0592481]
[1764360667388,0.37638,91035.0,91034.0,0.0592481]
[1764360667690,0.38932,91035.0,91034.0,0.0152381]
[1764360668795,0.38932,91035.0,91029.0,0.05727]
[1764360668796,0.0700753,91030.0,91029.0,0.05727]
[1764360669091,0.6300753,91030.0,91029.0,0.05727]
[1764360670498,0.9100753,91030.0,91029.0,0.06027]
[1764360670696,0.9110753,91030.0,91029.0,0.06027]
[1764360672190,0.5510753,91030.0,91029.0,0.06027]
[1764360673284,0.5010753,91030.0,91029.0,0.06027]
[1764360673588,0.9110753,91030.0,91029.0,0.06027]
[1764360674194,0.5010753,91030.0,91029.0,0.06027]
[1764360674496,0.6310753,91030.0,91029.0,0.06027]
[1764360678498,0.8510753,91030.0,91029.0,0.06027]
[1764360682090,0.8510753,91030.0,91025.0,0.00016475]
[1764360682091,0.0554858,91026.0,91025.0,0.00016475]
[1764360682291,0.0554858,91026.0,91007.0,0.053968]
[1764360682292,0.0109881,91009.0,91007.0,0.053968]
[1764360682594,0.0445,91008.0,91007.0,0.053968]
[1764360682794,0.4745,91008.0,91007.0,0.053968]
[1764360684501,0.4745,91008.0,91007.0,0.054968]
[1764360685401,0.0745,91008.0,91007.0,0.054968]
[1764360685702,0.4245,91008.0,91007.0,0.054968]
[1764360685905,0.4265,91008.0,91007.0,0.054968]
[1764360687604,0.0765,91008.0,91007.0,0.054968]
[1764360687806,0.3065,91008.0,91007.0,0.054968]
[1764360690606,0.002,91008.0,91007.0,0.054968]
[1764360691203,0.02503,91008.0,91007.0,0.054968]
[1764360691508,0.002,91008.0,91007.0,0.434968]
[1764360691707,0.002,91008.0,91007.0,0.114968]
[1764360692299,0.00016475,91017.0,91016.0,0.053687]
[1764360692499,0.44319475,91017.0,91016.0,0.053687]
[1764360692802,0.00016475,91017.0,91016.0,0.053687]
[1764360693002,0.23327749,91040.0,91039.0,0.02117]
[1764360693198,0.830343,91040.0,91039.0,0.02117]
[1764360693406,0.04584,91031.0,91030.0,0.0671142]
[1764360693599,0.41584,91031.0,91030.0,0.0671142]
[1764360693996,0.17645449,91040.0,91030.0,0.0671142]
[1764360693997,0.04584,91036.0,91035.0,0.0671136]
[1764360694199,0.45584,91036.0,91035.0,0.0671136]
[1764360694598,0.00516475,91040.0,91039.0,0.0536832]
[1764360695506,0.00016475,91040.0,91039.0,0.0536832]
[1764360696306,0.00416475,91040.0,91039.0,0.4136832]
[1764360696611,0.00416475,91040.0,91039.0,0.1836832]
[1764360697308,0.02719475,91040.0,91039.0,0.0536832]
[1764360697502,0.05000475,91040.0,91039.0,0.0536832]
[1764360697703,0.00416475,91040.0,91039.0,0.0536832]
[1764360699111,0.02719475,91040.0,91039.0,0.0536832]
[1764360699905,0.05000475,91040.0,91039.0,0.0536832]
[1764360700104,0.05000475,91040.0,91039.0,0.06678782]
[1764360700404,0.44000475,91040.0,91039.0,0.06678782]
[1764360703115,0.44000475,91040.0,91039.0,0.05580462]
[1764360704116,0.44000475,91040.0,91039.0,0.01310462]
[1764360704412,0.44000475,91040.0,91039.0,0.0427]
[1764360704805,0.05000475,91040.0,91039.0,0.0427]
[1764360706304,0.05000475,91040.0,91039.0,0.0536832]
[1764360706710,0.05000475,91040.0,91039.0,0.0427]
[1764360719313,0.04900475,91040.0,91039.0,0.0427]
[1764360725820,0.05698775,91040.0,91039.0,0.0536832]
[1764360726015,0.06098775,91040.0,91039.0,0.0546832]
[1764360726321,0.06098775,91040.0,91039.0,0.02217]
[1764360726531,0.07402775,91040.0,91039.0,0.02217]
[1764360726719,0.07402775,91040.0,91039.0,0.04369]
[1764360726921,0.06098775,91040.0,91039.0,0.04369]
[1764360730531,0.51098775,91040.0,91039.0,0.04369]
[1764360732130,0.24098775,91040.0,91039.0,0.04369]
[1764360733030,0.06098775,91040.0,91039.0,0.04369]
[1764360740732,0.00416475,91040.0,91039.0,0.04369]
[1764360744137,0.02619475,91040.0,91039.0,0.04369]
[1764360745535,0.04940475,91040.0,91039.0,0.04369]
[1764360746546,0.02619475,91040.0,91039.0,0.04369]
[1764360746741,0.04898475,91040.0,91039.0,0.04369]
[1764360749847,0.05996775,91040.0,91039.0,0.04369]
[1764360751143,0.05996775,91040.0,91039.0,0.04369]
[1764360754452,0.04898475,91040.0,91039.0,0.04369]
[1764360757854,0.00416475,91040.0,91039.0,0.04369]
[1764360763757,0.02548475,91040.0,91039.0,0.04369]
[1764360764969,0.00416475,91040.0,91039.0,0.04369]
[1764360766574,0.02548475,91040.0,91039.0,0.04369]
[1764360767070,0.00416475,91040.0,91039.0,0.04369]
[1764360767972,0.02548475,91040.0,91039.0,0.04369]
[1764360768272,0.04827475,91040.0,91039.0,0.04369]
[1764360768470,0.00416475,91040.0,91039.0,0.04369]
[1764360782978,0.17304,91056.0,91054.0,0.04438]
[1764360783277,0.17304,91069.0,91054.0,0.04438]
[1764360783477,0.16292119,91064.0,91054.0,0.04438]
[1764360783682,0.0109808,91059.0,91054.0,0.04438]
[1764360783882,0.0109804,91062.0,91054.0,0.04438]
[1764360784084,1.501,91055.0,91054.0,0.04538]
[1764360784284,1.51,91055.0,91054.0,0.04538]
[1764360787880,1.51,91055.0,91054.0,0.05915052]
[1764360806696,0.02291475,91064.0,91063.0,0.0570703]
[1764360806895,0.01296047,91064.0,91063.0,0.0570703]
[1764360808095,0.01396047,91064.0,91063.0,0.0570703]
[1764360808495,0.03589047,91064.0,91063.0,0.0570703]
[1764360808699,0.04189047,91064.0,91063.0,0.0580703]
[1764360809099,0.03589047,91064.0,91063.0,0.0570703]
[1764360809306,0.04089047,91064.0,91063.0,0.0580703]
[1764360818200,0.006,91064.0,91063.0,0.0580703]
[1764360818810,0.02875,91064.0,91063.0,0.0580703]
[1764360819000,0.05068,91064.0,91063.0,0.0580703]
[1764360821210,0.02875,91064.0,91063.0,0.0580703]
[1764360821806,0.006,91064.0,91063.0,0.0580703]
[1764360823610,0.02875,91064.0,91063.0,0.0580703]
[1764360824305,0.05068,91064.0,91063.0,0.0580703]
[1764360833718,0.04568,91064.0,91063.0,0.0570703]
[1764360833920,0.04868,91064.0,91063.0,0.0580703]
[1764360844214,0.004,91064.0,91063.0,0.0580703]
[1764360849621,0.003,91064.0,91063.0,0.0580703]
[1764360849818,0.04454475,91073.0,91072.0,0.04527]
[1764360850017,0.04138421,91073.0,91072.0,0.0562492]
[1764360852027,0.04238421,91073.0,91072.0,0.0562492]
[1764360852531,0.04238421,91073.0,91072.0,0.0622492]
[1764360855734,0.04238421,91073.0,91072.0,0.0755489]
[1764360859343,0.04238421,91073.0,91072.0,0.0302789]
[1764360860140,0.04238421,91073.0,91072.0,0.0423497]
[1764360860439,0.001,91073.0,91072.0,0.0652597]
[1764360860642,0.02402,91073.0,91072.0,0.0652597]
[1764360860832,0.04578,91073.0,91072.0,0.0652597]
[1764360897263,0.02402,91073.0,91072.0,0.0652597]
[1764360897869,0.04618,91073.0,91072.0,0.0652597]
[1764360906272,0.04618,91073.0,91072.0,0.0192997]
[1764360906594,0.42618,91073.0,91072.0,0.0192997]
[1764360907782,0.42518,91073.0,91072.0,0.0142997]
[1764360908272,0.42518,91073.0,91072.0,0.001]
[1764360908969,0.04326,91069.0,91068.0,0.0109796]
[1764360909278,0.64618,91069.0,91068.0,0.02366464]
[1764360910180,0.64718,91069.0,91068.0,0.02366464]
[1764360911376,0.64718,91069.0,91068.0,0.01268504]
[1764360911677,0.04326,91066.0,91065.0,0.0109799]
[1764360912879,0.04326,91066.0,91065.0,0.0119799]
[1764360913270,0.0542399,91066.0,91065.0,0.0119799]
[1764360913680,0.04326,91066.0,91065.0,0.0119799]
[1764360913975,0.04326,91066.0,91065.0,0.0573799]
[1764360914367,0.04326,91066.0,91065.0,0.0119799]
[1764360914768,0.04326,91066.0,91065.0,0.0341699]
[1764360915079,0.04326,91066.0,91065.0,0.02319]
[1764360915269,0.04326,91066.0,91065.0,0.001]
[1764360916883,0.46326,91066.0,91065.0,0.001]
[1764360917176,0.04382,91064.0,91063.0,0.00016475]
[1764360917381,0.054801,91057.0,91056.0,0.05045]
[1764360917684,0.617761,91057.0,91056.0,0.05045]
[1764360918275,0.0548015,91053.0,91052.0,0.0109816]
[1764360918474,0.4948015,91053.0,91052.0,0.0109816]
[1764360918985,0.4948015,91053.0,91052.0,0.02371692]
[1764360919884,0.2048015,91053.0,91052.0,0.02471692]
[1764360921078,1.69382,91053.0,91052.0,0.04651692]
[1764360921280,1.54382,91053.0,91052.0,0.06807692]
[1764360922687,1.5548015,91053.0,91052.0,0.06807692]
[1764360922886,1.54382,91053.0,91052.0,0.06807692]
[1764360923279,1.54382,91053.0,91052.0,0.08097692]
[1764360933596,1.54382,91053.0,91052.0,0.06807692]
[1764360938906,1.5548015,91053.0,91052.0,0.06807692]
[1764360939304,1.5548015,91053.0,91052.0,0.02471692]
[1764360941601,1.5548015,91053.0,91047.0,0.00016475]
[1764360941602,0.0553021,91048.0,91047.0,0.00016475]
[1764360941805,0.0553024,91045.0,91044.0,0.03555]
[1764360942002,0.4353024,91045.0,91044.0,0.02334969]
[1764360943098,0.04432,91044.0,91043.0,0.0109826]
[1764360943298,0.42432,91044.0,91043.0,0.00606809]
[1764360944706,0.42432,91044.0,91043.0,0.00706809]
[1764360945713,0.42432,91044.0,91043.0,0.001]
[1764360947817,0.0553027,91043.0,91042.0,0.02354003]
[1764360948009,0.4353027,91043.0,91042.0,0.02354003]
[1764360948909,0.04432,91043.0,91042.0,0.02354003]
[1764360951108,0.04432,91043.0,91042.0,0.01255733]
[1764360951305,0.04432,91039.0,91038.0,0.0109832]
[1764360951515,0.6483032,91039.0,91038.0,0.0109832]
[1764360951911,0.6483032,91039.0,91038.0,0.0338232]
[1764360953319,0.6483032,91039.0,91038.0,0.0119832]
[1764360953618,0.64936464,91039.0,91038.0,0.0348232]
[1764360954313,0.64936464,91039.0,91038.0,0.001]
[1764360956121,0.04441,91038.0,91037.0,0.0109833]
[1764360956419,0.04547144,91038.0,91037.0,0.0542033]
[1764360957421,0.04578809,91038.0,91037.0,0.0542033]
[1764360957816,0.0459183,91038.0,91037.0,0.0542033]
[1764360961222,0.0124917,91038.0,91037.0,0.0109834]
[1764360961422,0.0564517,91038.0,91037.0,0.0323934]
[1764360961919,0.0549441,91031.0,91030.0,0.04484]
[1764360962126,0.4349441,91031.0,91030.0,0.04484]
[1764360962416,0.054946,91015.0,91014.0,0.05585]
[1764360962619,0.0109868,91009.0,91008.0,0.02141]
[1764360962810,0.04396,91007.0,91003.0,0.0109875]
[1764360963011,0.04396,91007.0,91006.0,0.01126181]
[1764360963516,0.04396,91007.0,91006.0,0.02378551]
[1764360963715,0.04396,91007.0,91006.0,0.01126181]
[1764360963917,0.0454683,91007.0,91006.0,0.00027471]
[1764360964106,0.0464683,91007.0,91006.0,0.00027471]
[1764360964518,0.4464683,91007.0,91006.0,0.00027471]
[1764360964729,0.4464683,91007.0,91006.0,0.03267181]
[1764360964910,0.4464683,91007.0,91006.0,0.01126181]
[1764360965317,0.4464683,91007.0,91006.0,0.00027471]
[1764360966920,0.0464683,91007.0,91006.0,0.04349471]
[1764360967526,0.0464683,91007.0,91006.0,0.05567087]
[1764360973330,0.4864683,91007.0,91006.0,0.01245087]
[1764360974015,0.4864683,91007.0,91006.0,0.03386087]
[1764360975732,0.4864683,91007.0,91006.0,0.01245087]
[1764360976335,0.4864683,91007.0,91006.0,0.03393087]
[1764360980329,0.4864683,91007.0,91006.0,0.05622087]
[1764360980535,0.1764683,91007.0,91006.0,0.05622087]
[1764360980837,0.4664683,91007.0,91006.0,0.05622087]
[1764360981729,0.0464683,91007.0,91006.0,0.05622087]
[1764360982936,0.00016475,91016.0,91015.0,0.032466]
[1764360983134,0.00016475,91016.0,91015.0,0.054756]
[1764360983326,0.14150534,91038.0,91037.0,0.04377]
[1764360983633,0.34150534,91038.0,91037.0,0.04377]
[1764360983820,0.2554133,91038.0,91037.0,0.04377]
[1764360984023,0.24443,91038.0,91037.0,0.04377]
[1764360984223,0.04443,91038.0,91037.0,0.04377]
[1764360984434,0.02203,91038.0,91037.0,0.04377]
[1764360984729,0.00016475,91047.0,91046.0,0.0547523]
[1764360985333,0.04459475,91047.0,91046.0,0.0547523]
[1764360985925,0.00016475,91047.0,91046.0,0.0547523]
[1764360986125,0.04513475,91047.0,91046.0,0.0547523]
[1764360986724,0.00016475,91047.0,91046.0,0.0547523]
[1764360986929,0.02174475,91047.0,91046.0,0.0547523]
[1764360987130,0.04468475,91047.0,91046.0,0.0547523]
[1764360988433,0.00016475,91047.0,91046.0,0.0547523]
[1764360988930,0.02174475,91047.0,91046.0,0.0547523]
[1764360990231,0.00016475,91047.0,91046.0,0.0547523]
[1764360991034,0.00016475,91047.0,91046.0,0.06670878]
[1764360991734,1.5,91053.0,91052.0,0.0538816]
[1764360992039,0.04452,91068.0,91067.0,0.0538798]
[1764360992429,0.02158,91068.0,91067.0,0.0538798]
[1764360992736,0.04452,91076.0,91075.0,0.0429]
[1764360992922,1.54452,91076.0,91075.0,0.0429]
[1764360993122,1.55452,91076.0,91075.0,0.0429]
[1764360994035,1.55552,91076.0,91075.0,0.0429]
[1764360994535,1.501,91076.0,91075.0,0.0429]
[1764360998635,0.001,91076.0,91075.0,0.0429]
[1764360998933,0.00016475,91077.0,91076.0,0.0538787]
[1764361000136,0.04468475,91077.0,91076.0,0.0538787]
[1764361001443,0.02174475,91077.0,91076.0,0.0538787]
[1764361001742,0.04468475,91077.0,91076.0,0.0538787]
[1764361002041,0.02174475,91077.0,91076.0,0.0538787]
[1764361002640,0.04468475,91077.0,91076.0,0.0538787]
[1764361004230,0.04468475,91077.0,91076.0,0.0429]
[1764361011342,0.04468475,91077.0,91076.0,0.0538787]
[1764361020350,0.04568475,91077.0,91076.0,0.0538787]
[1764361020850,0.00116475,91077.0,91076.0,0.0538787]
[1764361021444,0.00027447,91086.0,91085.0,0.0551476]
[1764361022451,0.00327447,91086.0,91085.0,0.0551476]
[1764361025850,0.02513447,91086.0,91085.0,0.0551476]
[1764361026956,0.00327447,91086.0,91085.0,0.0551476]
[1764361028046,0.02513447,91086.0,91085.0,0.0551476]
[1764361028253,0.04781447,91086.0,91085.0,0.0551476]
[1764361028452,0.04781447,91086.0,91085.0,0.06690039]
[1764361029649,0.02513447,91086.0,91085.0,0.06690039]
[1764361029861,0.04781447,91086.0,91085.0,0.06690039]
[1764361036456,0.02513447,91086.0,91085.0,0.06690039]
[1764361036753,0.04745447,91086.0,91085.0,0.06690039]
[1764361037055,1.54745447,91086.0,91085.0,0.06690039]
[1764361039559,1.54745447,91086.0,91085.0,0.05592279]
[1764361039755,1.99745447,91086.0,91085.0,0.01175279]
[1764361039956,0.04431,91078.0,91077.0,0.04595]
[1764361040262,0.4552885,91078.0,91077.0,0.04595]
[1764361040556,0.04431,91077.0,91076.0,0.00016475]
[1764361040760,0.04431,91057.0,91056.0,0.04498]
[1764361040960,0.02199,91057.0,91056.0,0.04498]
[1764361041156,0.04431,91057.0,91056.0,0.04498]
[1764361041954,0.02199,91057.0,91056.0,0.04498]
[1764361042260,0.04431,91057.0,91056.0,0.04598]
[1764361042658,0.04431,91057.0,91056.0,0.05098]
[1764361042858,0.04431,91057.0,91056.0,0.04998]
[1764361043054,0.04431,91057.0,91056.0,0.05773459]
[1764361043260,0.04431,91057.0,91056.0,0.06173459]
[1764361043651,0.02199,91057.0,91056.0,0.06073459]
[1764361044052,0.04431,91057.0,91056.0,0.06073459]
[1764361044452,0.04431,91057.0,91056.0,0.05973459]
[1764361044856,0.04431,91065.0,91064.0,0.04498]
[1764361046259,0.04431,91065.0,91064.0,0.04598]
[1764361046662,0.04431,91065.0,91064.0,0.04498]
[1764361048163,0.04431,91065.0,91064.0,0.04598]
[1764361051754,0.04431,91065.0,91064.0,0.04498]
[1764361052860,0.00016475,91066.0,91065.0,0.06834]
[1764361053367,0.00016475,91066.0,91065.0,0.05736]
[1764361053563,0.02229475,91066.0,91065.0,0.05736]
[1764361053765,0.04427475,91066.0,91065.0,0.05736]
[1764361059174,0.04427475,91066.0,91065.0,0.06834]
[1764361063769,0.02229475,91066.0,91065.0,0.06834]
[1764361065567,0.04427475,91066.0,91065.0,0.06834]
[1764361068478,0.00016475,91066.0,91065.0,0.06834]
[1764361068775,0.01186,91096.0,91061.0,0.04187]
[1764361068776,0.04411,91081.0,91080.0,0.0671482]
[1764361069473,0.04411,91081.0,91080.0,0.05617]
[1764361069878,0.04511,91081.0,91080.0,0.05617]
[1764361071481,0.04911,91081.0,91080.0,0.05617]
[1764361073373,0.04911,91081.0,91080.0,0.04369]
[1764361073779,0.04911,91081.0,91080.0,0.05736]
[1764361074882,0.04911,91081.0,91080.0,0.07064986]
[1764361078577,0.005,91081.0,91080.0,0.07064986]
[1764361090604,0.21729,91113.0,91112.0,0.02187]
[1764361090813,0.26729,91113.0,91112.0,0.02187]
[1764361091112,1.76729,91113.0,91112.0,0.02187]
[1764361091295,1.76729,91113.0,91112.0,0.04445]
[1764361091498,0.04437,91108.0,91107.0,0.04445]
[1764361091902,1.501,91113.0,91112.0,0.05767]
[1764361092101,0.001,91113.0,91112.0,0.05767]
[1764361092498,0.02270858,91122.0,91121.0,0.0554233]
[1764361092693,0.00010858,91122.0,91121.0,0.0554233]
[1764361092906,0.02270858,91122.0,91121.0,0.0554233]
[1764361093910,0.02770858,91122.0,91121.0,0.0554233]
[1764361094208,0.04947858,91122.0,91121.0,0.0554233]
[1764361094907,0.05047858,91122.0,91121.0,0.0554233]
[1764361095210,0.02870858,91122.0,91121.0,0.0554233]
[1764361095401,0.00610858,91122.0,91121.0,0.0554233]
[1764361097408,0.00610858,91122.0,91121.0,0.06933448]
[1764361106507,0.02867858,91122.0,91121.0,0.06933448]
[1764361107312,0.00610858,91122.0,91121.0,0.06933448]
[1764361107510,0.16277284,91140.0,91121.0,0.06933448]
[1764361107706,0.04262,91141.0,91140.0,0.05965]
[1764361107910,0.0535909,91141.0,91140.0,0.05965]
[1764361108117,1.5535909,91141.0,91140.0,0.05965]
[1764361108512,1.5535909,91141.0,91140.0,0.04567]
[1764361109020,1.55362,91141.0,91140.0,0.04667]
[1764361110010,1.55062,91141.0,91140.0,0.04567]
[1764361110210,1.55062,91141.0,91140.0,0.05965]
[1764361110411,1.55162,91141.0,91140.0,0.05965]
[1764361110922,0.03026,91141.0,91140.0,0.05965]
[1764361111112,0.008,91141.0,91140.0,0.05965]
[1764361111422,0.05062,91141.0,91140.0,0.05965]
[1764361111923,0.04262,91141.0,91140.0,0.05965]
[1764361116722,0.04262,91141.0,91140.0,0.0741634]
[1764361118820,0.04262,91141.0,91140.0,0.0370734]
[1764361119124,0.04262,91141.0,91140.0,0.0601834]
[1764361119317,0.04262,91141.0,91140.0,0.04567]
[1764361121120,0.04262,91141.0,91140.0,0.02256]
[1764361121420,0.04262,91141.0,91140.0,0.033531]
[1764361121624,0.04262,91141.0,91140.0,0.056641]
[1764361121820,0.04262,91141.0,91140.0,0.070621]
[1764361124933,0.04262,91141.0,91140.0,0.04567]
[1764361128029,0.04262,91141.0,91140.0,0.05965]
[1764361129516,0.04262,91141.0,91140.0,0.04567]
[1764361129733,0.053591,91140.0,91139.0,0.01482304]
[1764361130034,0.0109717,91137.0,91136.0,0.0109713]
[1764361130215,0.4735917,91137.0,91136.0,0.0109713]
[1764361131631,0.4735917,91137.0,91136.0,0.0345313]
[1764361131825,0.4735917,91137.0,91136.0,0.0576413]
[1764361132032,0.04262,91137.0,91136.0,0.0716213]
[1764361132234,0.0535913,91137.0,91136.0,0.0716213]
[1764361132426,0.04262,91137.0,91136.0,0.0716213]
[1764361133223,0.04262,91137.0,91136.0,0.0576413]
[1764361138326,0.04375916,91137.0,91136.0,0.0576413]
[1764361139239,0.04375916,91137.0,91136.0,0.0703513]
[1764361139535,0.04412693,91137.0,91136.0,0.0703513]
[1764361142037,0.04412693,91137.0,91136.0,0.1108413]
[1764361142739,0.24412693,91137.0,91136.0,0.1108413]
[1764361142925,0.04412693,91137.0,91136.0,0.1108413]
[1764361143124,0.48412693,91137.0,91136.0,0.06405]
[1764361143327,0.48412693,91137.0,91136.0,0.08646]
[1764361143639,0.04412693,91137.0,91136.0,0.08646]
[1764361145137,0.04417233,91137.0,91136.0,0.08646]
[1764361145435,0.42514363,91137.0,91136.0,0.06405]
[1764361146135,0.12514363,91137.0,91136.0,0.08646]
[1764361146330,0.11452036,91137.0,91136.0,0.08646]
[1764361146531,0.04452036,91137.0,91136.0,0.08646]
[1764361146936,0.04486839,91137.0,91136.0,0.08646]
[1764361147136,0.04486839,91137.0,91136.0,0.09917]
[1764361147731,0.00224839,91137.0,91136.0,0.09917]
[1764361148833,0.02117,91154.0,91153.0,0.0560994]
[1764361149137,0.25071225,91170.0,91164.0,0.04513]
[1764361149138,0.0109681,91165.0,91164.0,0.04513]
[1764361149448,1.77179495,91165.0,91164.0,0.04513]
[1764361150240,1.76082685,91165.0,91164.0,0.04513]
[1764361150742,1.76782685,91165.0,91164.0,0.04513]
[1764361151244,2.02782685,91165.0,91164.0,0.04513]
[1764361151833,1.74782685,91165.0,91164.0,0.04513]
[1764361152033,2.01782685,91165.0,91164.0,0.04513]
[1764361152238,1.75782685,91165.0,91164.0,0.04513]
[1764361152839,1.99782685,91165.0,91164.0,0.04513]
[1764361153142,1.73782685,91165.0,91164.0,0.04513]
[1764361153543,1.71095,91165.0,91164.0,0.04513]
[1764361154546,1.95095,91165.0,91164.0,0.04513]
[1764361157240,0.01124213,91166.0,91164.0,0.04513]
[1764361157241,3e-08,91166.0,91165.0,0.054958]
[1764361157649,0.00027411,91206.0,91203.0,0.04399]
[1764361157650,0.04574,91204.0,91203.0,0.04399]
[1764361159239,0.04674,91204.0,91203.0,0.04399]
[1764361159638,0.001,91204.0,91203.0,0.04399]
[1764361159947,0.002,91204.0,91203.0,0.04399]
[1764361160137,4.11e-06,91206.0,91205.0,0.04399]
[1764361161143,1.5,91239.0,91238.0,0.05555]
[1764361161444,0.04601399,91246.0,91245.0,0.05798]
[1764361161941,1.54601399,91246.0,91245.0,0.02229]
[1764361162343,1.54601399,91246.0,91238.0,0.01156]
[1764361162344,0.04574,91239.0,91238.0,0.05555]
[1764361162848,0.04574,91232.0,91231.0,0.04399]
[1764361163044,0.04574,91232.0,91231.0,0.02229]
[1764361163243,0.04674111,91232.0,91231.0,0.05798]
[1764361164248,0.04674111,91232.0,91231.0,0.06098]
[1764361164443,0.00100111,91232.0,91231.0,0.06098]
[1764361164650,0.04574,91241.0,91240.0,0.04270165]
[1764361164844,1.50027399,91246.0,91245.0,0.05798]
[1764361165043,1.50027399,91246.0,91245.0,0.04399]
[1764361166451,1.50027399,91246.0,91245.0,0.04606]
[1764361167939,1.88027399,91246.0,91245.0,0.04606]
[1764361168742,0.04321,91238.0,91237.0,0.0109593]
[1764361169138,0.04321,91238.0,91237.0,0.0335393]
[1764361169637,0.04321,91238.0,91237.0,0.0548093]
[1764361169850,0.04321,91238.0,91237.0,0.0568093]
[1764361171552,0.04321,91238.0,91237.0,0.0966793]
[1764361173349,0.04321,91238.0,91237.0,0.08572]
[1764361173553,0.29321,91238.0,91237.0,0.08572]
[1764361173855,0.29321,91238.0,91237.0,0.06445]
[1764361174356,0.29321,91238.0,91237.0,0.08572]
[1764361178363,0.29321,91238.0,91237.0,0.04187]
[1764361178364,0.04321,91238.0,91237.0,0.04187]
[1764361178550,0.42321,91238.0,91237.0,0.04187]
[1764361179949,0.42321,91238.0,91237.0,0.06445]
[1764361180359,0.42321,91238.0,91237.0,0.08572]
[1764361180661,0.04321,91238.0,91237.0,0.08572]
[1764361181551,0.04321,91238.0,91237.0,0.06445]
[1764361181959,0.04321,91238.0,91237.0,0.08572]
[1764361184758,0.46321,91238.0,91237.0,0.08572]
[1764361185161,0.46321,91238.0,91237.0,0.0966793]
[1764361187257,0.46321,91238.0,91237.0,0.12451855]
[1764361187976,0.46321,91238.0,91237.0,0.13547785]
[1764361188267,0.46321,91238.0,91237.0,0.0966793]
[1764361189259,0.46321,91238.0,91237.0,0.15487713]
[1764361190253,0.46321,91238.0,91237.0,0.0966793]
[1764361191754,0.42,91238.0,91237.0,0.0966793]
[1764361192662,0.46321,91238.0,91237.0,0.0966793]
[1764361194164,0.42,91238.0,91237.0,0.0966793]
[1764361194366,0.46321,91238.0,91237.0,0.0966793]
[1764361195363,0.46321,91238.0,91237.0,0.08572]
[1764361195762,0.46321,91238.0,91237.0,0.04187]
[1764361196364,0.46321,91238.0,91237.0,0.06445]
[1764361196562,0.46321,91238.0,91237.0,0.08574]
[1764361201775,1.02593,91238.0,91237.0,0.04187]
[1764361201964,1.04826113,91238.0,91237.0,0.10088275]
[1764361202171,0.0670502,91230.0,91227.0,0.0775971]
[1764361202469,0.0547918,91216.0,91215.0,0.04348]
[1764361202668,0.0547923,91212.0,91211.0,0.04348]
[1764361202870,0.4847923,91212.0,91211.0,0.04348]